[Event "Early-Titled-Tuesday-Blitz-March-19-2024"]
[Site "Chess.com"]
[Date "2024.03.19"]
[Round "8"]
[White "Lion-Al-Messi"]
[Black "ploxoi"]
[Result "1/2-1/2"]
[WhiteElo "2608"]
[BlackElo "2443"]
[TimeControl "180+1"]
[EndTime "9:31:33 PDT"]
[Termination "Game drawn by stalemate"]

1. e4 {[%clk 0:03:00.9]} 1... e6 {[%clk 0:02:58.8]} 2. d4 {[%clk 0:03:00.6]}
2... d5 {[%clk 0:02:59.7]} 3. exd5 {[%clk 0:03:01]} 3... exd5 {[%clk 0:03:00.6]}
4. Bd3 {[%clk 0:03:01.3]} 4... Bd6 {[%clk 0:03:01.1]} 5. Nc3 {[%clk 0:03:01]}
5... Ne7 {[%clk 0:03:01.1]} 6. Nb5 {[%clk 0:03:00.6]} 6... Bb4+ {[%clk
0:02:58.3]} 7. c3 {[%clk 0:03:00.3]} 7... Ba5 {[%clk 0:02:58.7]} 8. b4 {[%clk
0:03:00.4]} 8... Bb6 {[%clk 0:02:58.8]} 9. a4 {[%clk 0:03:00.6]} 9... c6 {[%clk
0:02:58.9]} 10. a5 {[%clk 0:02:59.4]} 10... cxb5 {[%clk 0:02:46.2]} 11. axb6
{[%clk 0:02:59]} 11... Qxb6 {[%clk 0:02:45.6]} 12. Qe2 {[%clk 0:02:59]} 12...
Nc6 {[%clk 0:02:37.7]} 13. Bg5 {[%clk 0:02:58.5]} 13... Be6 {[%clk 0:02:36.2]}
14. Nf3 {[%clk 0:02:57.5]} 14... O-O {[%clk 0:02:33.9]} 15. O-O {[%clk
0:02:56.5]} 15... a6 {[%clk 0:02:32.2]} 16. Bf4 {[%clk 0:02:48.4]} 16... Rfe8
{[%clk 0:02:26.3]} 17. Ng5 {[%clk 0:02:47.4]} 17... Ng6 {[%clk 0:01:51.6]} 18.
Bxg6 {[%clk 0:02:44.8]} 18... hxg6 {[%clk 0:01:50.9]} 19. Qd3 {[%clk 0:02:41.6]}
19... Bf5 {[%clk 0:01:43.1]} 20. Qg3 {[%clk 0:02:41.4]} 20... f6 {[%clk
0:01:19.4]} 21. Bc7 {[%clk 0:02:41]} 21... Qa7 {[%clk 0:01:19.7]} 22. Nf3 {[%clk
0:02:41.2]} 22... Re7 {[%clk 0:01:18.3]} 23. Bd6 {[%clk 0:02:39.6]} 23... Re6
{[%clk 0:01:16.9]} 24. Nh4 {[%clk 0:02:39.4]} 24... Rd8 {[%clk 0:01:00.2]} 25.
Bf4 {[%clk 0:02:12]} 25... Kf7 {[%clk 0:00:24]} 26. Rfe1 {[%clk 0:02:07.3]}
26... Rde8 {[%clk 0:00:22.3]} 27. Rxe6 {[%clk 0:01:57.2]} 27... Rxe6 {[%clk
0:00:23.2]} 28. Nxf5 {[%clk 0:01:57.8]} 28... gxf5 {[%clk 0:00:23.1]} 29. h4
{[%clk 0:01:58.7]} 29... Qa8 {[%clk 0:00:18.1]} 30. h5 {[%clk 0:01:58.1]} 30...
Ne7 {[%clk 0:00:18.9]} 31. Bd6 {[%clk 0:01:48.6]} 31... Qe8 {[%clk 0:00:07.9]}
32. Bxe7 {[%clk 0:01:45.6]} 32... Kxe7 {[%clk 0:00:03.9]} 33. Qxg7+ {[%clk
0:01:45.5]} 33... Qf7 {[%clk 0:00:04.6]} 34. Qxf7+ {[%clk 0:01:43.6]} 34... Kxf7
{[%clk 0:00:05.5]} 35. Kf1 {[%clk 0:01:43.3]} 35... Kg7 {[%clk 0:00:04.4]} 36.
Rd1 {[%clk 0:01:24.6]} 36... Kh6 {[%clk 0:00:03.9]} 37. Rd3 {[%clk 0:01:25.1]}
37... f4 {[%clk 0:00:03.1]} 38. Rf3 {[%clk 0:01:19.1]} 38... Re4 {[%clk
0:00:03.5]} 39. g3 {[%clk 0:01:17.8]} 39... Kxh5 {[%clk 0:00:03.2]} 40. gxf4
{[%clk 0:01:16.7]} 40... f5 {[%clk 0:00:01.5]} 41. Rh3+ {[%clk 0:01:15.8]} 41...
Kg4 {[%clk 0:00:02.2]} 42. Rh7 {[%clk 0:01:16.4]} 42... Kxf4 {[%clk 0:00:02.3]}
43. Rxb7 {[%clk 0:01:13.3]} 43... Re6 {[%clk 0:00:03.2]} 44. Rc7 {[%clk
0:01:06.1]} 44... Ke4 {[%clk 0:00:03.6]} 45. Ke2 {[%clk 0:01:03.3]} 45... f4
{[%clk 0:00:04.3]} 46. f3+ {[%clk 0:01:01.4]} 46... Kf5+ {[%clk 0:00:04.8]} 47.
Kd2 {[%clk 0:00:59.8]} 47... Rd6 {[%clk 0:00:03.2]} 48. Rf7+ {[%clk 0:00:55.7]}
48... Kg5 {[%clk 0:00:03.2]} 49. Re7 {[%clk 0:00:55]} 49... Kf5 {[%clk
0:00:03.4]} 50. Re5+ {[%clk 0:00:54.8]} 50... Kf6 {[%clk 0:00:04.1]} 51. Kd3
{[%clk 0:00:51.5]} 51... Kg6 {[%clk 0:00:04]} 52. Ke2 {[%clk 0:00:50.6]} 52...
Kf6 {[%clk 0:00:04.6]} 53. Kf2 {[%clk 0:00:51.1]} 53... Rc6 {[%clk 0:00:04.9]}
54. Rxd5 {[%clk 0:00:50]} 54... Rxc3 {[%clk 0:00:05.6]} 55. Rc5 {[%clk
0:00:49.2]} 55... Rb3 {[%clk 0:00:04.6]} 56. Rc6+ {[%clk 0:00:47.5]} 56... Kf7
{[%clk 0:00:05.2]} 57. Rxa6 {[%clk 0:00:44.3]} 57... Rb2+ {[%clk 0:00:05.5]} 58.
Kf1 {[%clk 0:00:43.9]} 58... Rxb4 {[%clk 0:00:06.4]} 59. Rd6 {[%clk 0:00:43.3]}
59... Rb2 {[%clk 0:00:06.1]} 60. Rd5 {[%clk 0:00:41.7]} 60... Kf6 {[%clk
0:00:06.5]} 61. Rd8 {[%clk 0:00:40.9]} 61... Ke7 {[%clk 0:00:06.3]} 62. Rb8
{[%clk 0:00:37.8]} 62... Rd2 {[%clk 0:00:06.7]} 63. Rxb5 {[%clk 0:00:34.8]}
63... Rxd4 {[%clk 0:00:06.8]} 64. Rf5 {[%clk 0:00:33.4]} 64... Ke6 {[%clk
0:00:06.6]} 65. Rf8 {[%clk 0:00:33.4]} 65... Ke5 {[%clk 0:00:06.3]} 66. Kg2
{[%clk 0:00:33]} 66... Rd6 {[%clk 0:00:06.5]} 67. Re8+ {[%clk 0:00:29.4]} 67...
Kf5 {[%clk 0:00:07]} 68. Rf8+ {[%clk 0:00:29.3]} 68... Kg5 {[%clk 0:00:06.3]}
69. Rg8+ {[%clk 0:00:28]} 69... Kf5 {[%clk 0:00:06.8]} 70. Rf8+ {[%clk
0:00:28.4]} 70... Kg5 {[%clk 0:00:07.1]} 71. Kf2 {[%clk 0:00:27.9]} 71... Rd2+
{[%clk 0:00:06.2]} 72. Ke1 {[%clk 0:00:27.9]} 72... Rd4 {[%clk 0:00:06.6]} 73.
Ke2 {[%clk 0:00:28]} 73... Ra4 {[%clk 0:00:06.2]} 74. Rf7 {[%clk 0:00:27.4]}
74... Ra2+ {[%clk 0:00:05.3]} 75. Kf1 {[%clk 0:00:26.4]} 75... Ra3 {[%clk
0:00:05.6]} 76. Kg2 {[%clk 0:00:26.1]} 76... Ra2+ {[%clk 0:00:06.1]} 77. Kg1
{[%clk 0:00:23.7]} 77... Ra3 {[%clk 0:00:06.2]} 78. Kg2 {[%clk 0:00:23.3]} 78...
Ra2+ {[%clk 0:00:05.7]} 79. Kh3 {[%clk 0:00:22.4]} 79... Rf2 {[%clk 0:00:06.1]}
80. Rg7+ {[%clk 0:00:19.4]} 80... Kf5 {[%clk 0:00:06.8]} 81. Rf7+ {[%clk
0:00:19.4]} 81... Ke5 {[%clk 0:00:07.2]} 82. Re7+ {[%clk 0:00:17.5]} 82... Kf6
{[%clk 0:00:05.1]} 83. Re4 {[%clk 0:00:17]} 83... Kf5 {[%clk 0:00:04.7]} 84. Re8
{[%clk 0:00:14.5]} 84... Rxf3+ {[%clk 0:00:05.3]} 85. Kg2 {[%clk 0:00:14.7]}
85... Rg3+ {[%clk 0:00:05.5]} 86. Kf2 {[%clk 0:00:15]} 86... Rg5 {[%clk
0:00:05.5]} 87. Rf8+ {[%clk 0:00:14.2]} 87... Kg4 {[%clk 0:00:06.1]} 88. Re8
{[%clk 0:00:14.4]} 88... Ra5 {[%clk 0:00:05.5]} 89. Rg8+ {[%clk 0:00:14.4]}
89... Kf5 {[%clk 0:00:06.1]} 90. Rf8+ {[%clk 0:00:14.6]} 90... Ke4 {[%clk
0:00:06.8]} 91. Re8+ {[%clk 0:00:14.9]} 91... Re5 {[%clk 0:00:07.3]} 92. Rxe5+
{[%clk 0:00:14.8]} 92... Kxe5 {[%clk 0:00:07.4]} 93. Kf3 {[%clk 0:00:15.7]}
93... Kf5 {[%clk 0:00:08.1]} 94. Kf2 {[%clk 0:00:14.1]} 94... Ke4 {[%clk
0:00:09]} 95. Ke2 {[%clk 0:00:14.2]} 95... f3+ {[%clk 0:00:09.9]} 96. Kf2 {[%clk
0:00:14.6]} 96... Kf4 {[%clk 0:00:10.8]} 97. Kf1 {[%clk 0:00:15]} 97... Kg4
{[%clk 0:00:11]} 98. Kf2 {[%clk 0:00:15.1]} 98... Kf4 {[%clk 0:00:11.6]} 99. Kf1
{[%clk 0:00:15.5]} 99... Ke5 {[%clk 0:00:12.2]} 100. Kf2 {[%clk 0:00:15.7]}
100... Ke4 {[%clk 0:00:13.1]} 101. Kf1 {[%clk 0:00:15.7]} 101... Ke3 {[%clk
0:00:14]} 102. Ke1 {[%clk 0:00:15.8]} 102... f2+ {[%clk 0:00:14.9]} 103. Kf1
{[%clk 0:00:16.1]} 103... Kf3 {[%clk 0:00:15.8]} 1/2-1/2

[Event "Early-Titled-Tuesday-Blitz-March-19-2024"]
[Site "Chess.com"]
[Date "2024.03.19"]
[Round "8"]
[White "santosalberto1987"]
[Black "djokovic74"]
[Result "0-1"]
[WhiteElo "2572"]
[BlackElo "2735"]
[TimeControl "180+1"]
[EndTime "9:31:38 PDT"]
[Termination "djokovic74 won by resignation"]

1. e4 {[%clk 0:03:00.9]} 1... e6 {[%clk 0:02:59.6]} 2. d4 {[%clk 0:03:00.8]}
2... d5 {[%clk 0:03:00.3]} 3. Nc3 {[%clk 0:03:01.1]} 3... Nf6 {[%clk 0:03:00.1]}
4. e5 {[%clk 0:03:01.4]} 4... Nfd7 {[%clk 0:03:00.3]} 5. Nce2 {[%clk 0:03:01.8]}
5... c5 {[%clk 0:03:00.5]} 6. c3 {[%clk 0:03:02.2]} 6... cxd4 {[%clk 0:03:01.1]}
7. cxd4 {[%clk 0:03:02.3]} 7... f6 {[%clk 0:03:01.7]} 8. exf6 {[%clk 0:03:02.3]}
8... Nxf6 {[%clk 0:03:01.7]} 9. Nf3 {[%clk 0:03:02.3]} 9... Nc6 {[%clk
0:03:02.2]} 10. Nc3 {[%clk 0:03:01.9]} 10... Bd6 {[%clk 0:03:02.3]} 11. Bd3
{[%clk 0:03:02.3]} 11... a6 {[%clk 0:02:49.4]} 12. O-O {[%clk 0:03:01.7]} 12...
O-O {[%clk 0:02:49.5]} 13. h3 {[%clk 0:02:57.5]} 13... Qc7 {[%clk 0:02:49.6]}
14. Re1 {[%clk 0:02:56.6]} 14... Bd7 {[%clk 0:02:49.9]} 15. a3 {[%clk
0:02:54.4]} 15... Rae8 {[%clk 0:02:49.5]} 16. Bg5 {[%clk 0:02:52.3]} 16... Re7
{[%clk 0:02:42.2]} 17. Rc1 {[%clk 0:02:50.1]} 17... h6 {[%clk 0:02:34.7]} 18.
Be3 {[%clk 0:02:35.4]} 18... Be8 {[%clk 0:02:24.8]} 19. Ne5 {[%clk 0:02:26.7]}
19... Qb8 {[%clk 0:02:13.8]} 20. f4 {[%clk 0:02:21.5]} 20... Bxe5 {[%clk
0:01:27.3]} 21. fxe5 {[%clk 0:02:17.8]} 21... Nd7 {[%clk 0:01:27.7]} 22. Rf1
{[%clk 0:02:14.1]} 22... Rxf1+ {[%clk 0:01:23.7]} 23. Qxf1 {[%clk 0:02:13.2]}
23... Ndxe5 {[%clk 0:01:09.3]} 24. dxe5 {[%clk 0:02:11.5]} 24... d4 {[%clk
0:01:09]} 25. Bxd4 {[%clk 0:01:50.8]} 25... Nxd4 {[%clk 0:01:07.7]} 26. Qf4
{[%clk 0:01:51]} 26... Nc6 {[%clk 0:00:59.6]} 27. Qe4 {[%clk 0:01:50.8]} 27...
g6 {[%clk 0:00:50.8]} 28. Re1 {[%clk 0:01:45.1]} 28... Qa7+ {[%clk 0:00:49.5]}
29. Kh1 {[%clk 0:01:43.1]} 29... Qd4 {[%clk 0:00:42]} 30. Qxd4 {[%clk
0:01:41.7]} 30... Nxd4 {[%clk 0:00:42.2]} 31. Ne4 {[%clk 0:01:42.4]} 31... Bc6
{[%clk 0:00:36.1]} 32. Nf6+ {[%clk 0:01:28.5]} 32... Kg7 {[%clk 0:00:36.5]} 33.
Rd1 {[%clk 0:01:28.8]} 33... Nf5 {[%clk 0:00:31]} 34. Kh2 {[%clk 0:01:18.7]}
34... Ne3 {[%clk 0:00:31]} 35. Rd2 {[%clk 0:01:16]} 35... Nd5 {[%clk 0:00:27]}
36. Nxd5 {[%clk 0:01:12.4]} 36... exd5 {[%clk 0:00:21.3]} 37. Re2 {[%clk
0:01:12.4]} 37... d4 {[%clk 0:00:19]} 38. g4 {[%clk 0:01:10.1]} 38... g5 {[%clk
0:00:16.4]} 39. Kg3 {[%clk 0:01:09.7]} 39... Rf7 {[%clk 0:00:15.5]} 40. Bf5
{[%clk 0:01:08.2]} 40... Re7 {[%clk 0:00:08.4]} 41. e6 {[%clk 0:01:04.9]} 41...
Kf6 {[%clk 0:00:05.7]} 42. h4 {[%clk 0:01:01]} 42... Bd5 {[%clk 0:00:05.6]} 43.
hxg5+ {[%clk 0:01:00.7]} 43... hxg5 {[%clk 0:00:06.2]} 44. Rd2 {[%clk 0:00:49]}
44... Bxe6 {[%clk 0:00:02]} 45. Bxe6 {[%clk 0:00:48.1]} 45... Rxe6 {[%clk
0:00:01.2]} 46. Rxd4 {[%clk 0:00:48.2]} 46... Re3+ {[%clk 0:00:01.6]} 47. Kf2
{[%clk 0:00:42.8]} 47... Rb3 {[%clk 0:00:01.5]} 48. Rd2 {[%clk 0:00:18.9]} 48...
Ke5 {[%clk 0:00:02]} 49. Rc2 {[%clk 0:00:16.5]} 49... Ke4 {[%clk 0:00:02.5]} 50.
Rc4+ {[%clk 0:00:13.4]} 50... Ke5 {[%clk 0:00:02.8]} 51. Rc5+ {[%clk 0:00:13]}
51... Kf4 {[%clk 0:00:03]} 52. Rc4+ {[%clk 0:00:13.3]} 52... Ke5 {[%clk
0:00:03.6]} 53. Rc5+ {[%clk 0:00:13.6]} 53... Kf6 {[%clk 0:00:04.3]} 54. Rc2
{[%clk 0:00:13.2]} 54... Ke6 {[%clk 0:00:04.9]} 55. Re2+ {[%clk 0:00:09.7]}
55... Kd5 {[%clk 0:00:05.2]} 56. Rc2 {[%clk 0:00:09.9]} 56... Kd4 {[%clk
0:00:05]} 57. Rd2+ {[%clk 0:00:08.4]} 57... Kc4 {[%clk 0:00:04.1]} 58. Rc2+
{[%clk 0:00:08.6]} 58... Kb5 {[%clk 0:00:03.8]} 59. Re2 {[%clk 0:00:08.3]} 59...
Kc6 {[%clk 0:00:02.8]} 60. Rc2+ {[%clk 0:00:08.3]} 60... Kd5 {[%clk 0:00:03.3]}
61. Rd2+ {[%clk 0:00:08.4]} 61... Ke4 {[%clk 0:00:03.9]} 62. Rc2 {[%clk
0:00:08.9]} 62... Ke5 {[%clk 0:00:03.7]} 63. Rd2 {[%clk 0:00:08.1]} 63... b6
{[%clk 0:00:03]} 64. Rc2 {[%clk 0:00:08.1]} 64... a5 {[%clk 0:00:03.5]} 65. Rd2
{[%clk 0:00:08.2]} 65... Ke4 {[%clk 0:00:03.6]} 66. Rc2 {[%clk 0:00:08.5]} 66...
Ke5 {[%clk 0:00:03.6]} 67. Rd2 {[%clk 0:00:08.6]} 67... b5 {[%clk 0:00:04.3]}
68. Re2+ {[%clk 0:00:07.3]} 68... Kf4 {[%clk 0:00:04.6]} 69. Rd2 {[%clk
0:00:06.1]} 69... Kxg4 {[%clk 0:00:04.9]} 70. Kg2 {[%clk 0:00:06.6]} 70... a4
{[%clk 0:00:04.7]} 71. Rd4+ {[%clk 0:00:06.1]} 71... Kf5 {[%clk 0:00:05.1]} 72.
Rd2 {[%clk 0:00:06.4]} 72... Ke4 {[%clk 0:00:05]} 73. Re2+ {[%clk 0:00:06.3]}
73... Kf4 {[%clk 0:00:04.8]} 74. Rf2+ {[%clk 0:00:06.5]} 74... Kg4 {[%clk
0:00:05.5]} 75. Rd2 {[%clk 0:00:06.5]} 75... Kh4 {[%clk 0:00:05.7]} 76. Rc2
{[%clk 0:00:06.2]} 76... g4 {[%clk 0:00:06]} 77. Rd2 {[%clk 0:00:06.2]} 77...
Kg5 {[%clk 0:00:06.3]} 78. Rc2 {[%clk 0:00:06.3]} 78... Kf4 {[%clk 0:00:06.7]}
79. Rd2 {[%clk 0:00:05.7]} 79... Ke3 {[%clk 0:00:07.1]} 80. Rc2 {[%clk
0:00:05.9]} 80... Rd3 {[%clk 0:00:06.8]} 81. Kg3 {[%clk 0:00:05.5]} 81... Rd2
{[%clk 0:00:07.1]} 82. Rc3+ {[%clk 0:00:05.4]} 82... Kd4 {[%clk 0:00:07.1]} 83.
Kxg4 {[%clk 0:00:05.2]} 83... Rxb2 {[%clk 0:00:07.3]} 84. Rh3 {[%clk 0:00:04.8]}
84... Rb3 {[%clk 0:00:07.4]} 85. Rh5 {[%clk 0:00:05.4]} 85... Kc3 {[%clk
0:00:07.6]} 86. Kf4 {[%clk 0:00:05.3]} 86... Kb2 {[%clk 0:00:08.2]} 87. Ke4
{[%clk 0:00:05.6]} 87... Kxa3 {[%clk 0:00:08.8]} 88. Kd4 {[%clk 0:00:06.2]}
88... Kb4 {[%clk 0:00:09.4]} 89. Rh1 {[%clk 0:00:04.8]} 89... a3 {[%clk
0:00:09.8]} 90. Ra1 {[%clk 0:00:04.8]} 90... Rb2 {[%clk 0:00:10.2]} 91. Kd3
{[%clk 0:00:04.9]} 91... Kb3 {[%clk 0:00:10.8]} 92. Kd4 {[%clk 0:00:04.7]} 92...
a2 {[%clk 0:00:11.3]} 93. Kd3 {[%clk 0:00:05.2]} 93... Rb1 {[%clk 0:00:11.5]}
0-1

[Event "Early-Titled-Tuesday-Blitz-March-19-2024"]
[Site "Chess.com"]
[Date "2024.03.19"]
[Round "9"]
[White "Josetricks"]
[Black "Misterfox120"]
[Result "0-1"]
[WhiteElo "2536"]
[BlackElo "2438"]
[TimeControl "180+1"]
[EndTime "9:39:17 PDT"]
[Termination "Misterfox120 won by resignation"]

1. e4 {[%clk 0:03:00.9]} 1... c6 {[%clk 0:02:58.9]} 2. Nf3 {[%clk 0:03:00.1]}
2... d5 {[%clk 0:02:59.8]} 3. Nc3 {[%clk 0:03:00.5]} 3... Bg4 {[%clk 0:02:56.4]}
4. h3 {[%clk 0:03:00.2]} 4... Bxf3 {[%clk 0:02:56.3]} 5. Qxf3 {[%clk 0:03:01.1]}
5... e6 {[%clk 0:02:57]} 6. d3 {[%clk 0:03:00.9]} 6... Nd7 {[%clk 0:02:56.5]} 7.
Bd2 {[%clk 0:03:01.4]} 7... Bb4 {[%clk 0:02:56.3]} 8. O-O-O {[%clk 0:03:01]}
8... Qb6 {[%clk 0:02:56.5]} 9. g4 {[%clk 0:03:00.5]} 9... d4 {[%clk 0:02:52.4]}
10. Nb1 {[%clk 0:02:59.7]} 10... Bxd2+ {[%clk 0:02:52.8]} 11. Nxd2 {[%clk
0:03:00.6]} 11... Ne7 {[%clk 0:02:52.9]} 12. Qg3 {[%clk 0:02:56.5]} 12... c5
{[%clk 0:02:51.3]} 13. Nc4 {[%clk 0:02:55.8]} 13... Qa6 {[%clk 0:02:45.9]} 14.
Nd6+ {[%clk 0:02:52.6]} 14... Kf8 {[%clk 0:02:46.1]} 15. Kb1 {[%clk 0:02:52.2]}
15... Rd8 {[%clk 0:02:35.6]} 16. f4 {[%clk 0:02:45.6]} 16... Qxd6 {[%clk
0:02:32]} 0-1

[Event "Early-Titled-Tuesday-Blitz-March-19-2024"]
[Site "Chess.com"]
[Date "2024.03.19"]
[Round "9"]
[White "IMchanged"]
[Black "Joachim100x"]
[Result "0-1"]
[WhiteElo "2659"]
[BlackElo "2511"]
[TimeControl "180+1"]
[EndTime "9:40:53 PDT"]
[Termination "Joachim100x won by resignation"]

1. e4 {[%clk 0:02:57.6]} 1... c5 {[%clk 0:02:59.9]} 2. Nf3 {[%clk 0:02:54.9]}
2... e6 {[%clk 0:02:58.5]} 3. d4 {[%clk 0:02:46.8]} 3... cxd4 {[%clk 0:02:58.7]}
4. Nxd4 {[%clk 0:02:46.8]} 4... Bc5 {[%clk 0:02:59.2]} 5. Nb3 {[%clk 0:02:42.5]}
5... Bb6 {[%clk 0:02:59.3]} 6. Nc3 {[%clk 0:02:38.8]} 6... Ne7 {[%clk
0:02:59.3]} 7. Bf4 {[%clk 0:02:32.1]} 7... d5 {[%clk 0:02:59.2]} 8. exd5 {[%clk
0:02:31.4]} 8... Nxd5 {[%clk 0:02:59.5]} 9. Nxd5 {[%clk 0:02:31.1]} 9... exd5
{[%clk 0:02:59.8]} 10. Qf3 {[%clk 0:02:29.6]} 10... O-O {[%clk 0:02:59.3]} 11.
O-O-O {[%clk 0:02:29.2]} 11... Nc6 {[%clk 0:02:59.3]} 12. Qxd5 {[%clk
0:02:25.5]} 12... Qf6 {[%clk 0:02:57.7]} 13. Qg5 {[%clk 0:02:21.7]} 13... Qxg5
{[%clk 0:02:53.1]} 14. Bxg5 {[%clk 0:02:21.9]} 14... Bxf2 {[%clk 0:02:53.8]} 15.
Bd3 {[%clk 0:02:22.2]} 15... Be6 {[%clk 0:02:52.9]} 16. Rhf1 {[%clk 0:02:21.4]}
16... Bb6 {[%clk 0:02:52.8]} 17. c3 {[%clk 0:02:21.5]} 17... f6 {[%clk
0:02:51.7]} 18. Bh4 {[%clk 0:02:20.9]} 18... Rad8 {[%clk 0:02:51.6]} 19. Rfe1
{[%clk 0:02:17.2]} 19... Bf7 {[%clk 0:02:51.5]} 20. Bg3 {[%clk 0:02:11.4]} 20...
Rfe8 {[%clk 0:02:49.1]} 21. Rxe8+ {[%clk 0:02:11.1]} 21... Rxe8 {[%clk 0:02:49]}
22. a4 {[%clk 0:02:09.5]} 22... Bxb3 {[%clk 0:02:47.1]} 23. Bc2 {[%clk
0:02:07.2]} 23... Bxc2 {[%clk 0:02:46.7]} 24. Kxc2 {[%clk 0:02:08.1]} 24... Rd8
{[%clk 0:02:46.3]} 25. Re1 {[%clk 0:02:07.6]} 25... Ne5 {[%clk 0:02:44.1]} 26.
Bxe5 {[%clk 0:02:06.4]} 26... fxe5 {[%clk 0:02:44.1]} 27. Rxe5 {[%clk
0:02:07.1]} 27... Kf7 {[%clk 0:02:37.8]} 28. Rb5 {[%clk 0:02:05]} 28... Rd7
{[%clk 0:02:37.6]} 29. a5 {[%clk 0:02:04.9]} 29... Bd8 {[%clk 0:02:37.3]} 30. h3
{[%clk 0:02:05]} 30... a6 {[%clk 0:02:37.5]} 31. Re5 {[%clk 0:02:02]} 31... Bf6
{[%clk 0:02:34.5]} 32. Rf5 {[%clk 0:02:01.9]} 32... Re7 {[%clk 0:02:32.6]} 33.
Rf2 {[%clk 0:01:59.5]} 33... Re5 {[%clk 0:02:30.5]} 0-1

[Event "Early-Titled-Tuesday-Blitz-March-19-2024"]
[Site "Chess.com"]
[Date "2024.03.19"]
[Round "9"]
[White "LeoWin2012"]
[Black "santosalberto1987"]
[Result "0-1"]
[WhiteElo "2242"]
[BlackElo "2574"]
[TimeControl "180+1"]
[EndTime "9:40:55 PDT"]
[Termination "santosalberto1987 won by resignation"]

1. e4 {[%clk 0:03:00.9]} 1... e6 {[%clk 0:02:29.3]} 2. d4 {[%clk 0:03:00]} 2...
d5 {[%clk 0:02:29.4]} 3. exd5 {[%clk 0:02:59]} 3... exd5 {[%clk 0:02:29.6]} 4.
Bd3 {[%clk 0:02:59.6]} 4... Nc6 {[%clk 0:02:29.6]} 5. c3 {[%clk 0:03:00.2]} 5...
Bd6 {[%clk 0:02:29.6]} 6. Nf3 {[%clk 0:02:56.2]} 6... Bg4 {[%clk 0:02:29.1]} 7.
h3 {[%clk 0:02:56.1]} 7... Bh5 {[%clk 0:02:29]} 8. O-O {[%clk 0:02:56.2]} 8...
Qd7 {[%clk 0:02:27.9]} 9. b4 {[%clk 0:02:55.5]} 9... O-O-O {[%clk 0:02:27]} 10.
a4 {[%clk 0:02:55.1]} 10... Kb8 {[%clk 0:02:26.8]} 11. a5 {[%clk 0:02:55.3]}
11... Nce7 {[%clk 0:02:24.3]} 12. b5 {[%clk 0:02:54.2]} 12... Ng6 {[%clk
0:02:21.9]} 13. b6 {[%clk 0:02:49.7]} 13... cxb6 {[%clk 0:02:20]} 14. axb6
{[%clk 0:02:50]} 14... a6 {[%clk 0:02:20.7]} 15. Qe2 {[%clk 0:02:44.2]} 15...
Nf6 {[%clk 0:02:15.9]} 16. Bg5 {[%clk 0:02:37.3]} 16... Rde8 {[%clk 0:02:13.3]}
17. Qd1 {[%clk 0:02:34]} 17... Ne4 {[%clk 0:02:13.2]} 18. Be3 {[%clk 0:02:27.7]}
18... Nf4 {[%clk 0:02:07.9]} 19. Ne5 {[%clk 0:02:13.6]} 19... Bxe5 {[%clk
0:02:04.5]} 20. dxe5 {[%clk 0:02:06.5]} 20... Bxd1 {[%clk 0:02:03.9]} 21. Bxf4
{[%clk 0:02:06.5]} 21... Qf5 {[%clk 0:01:58.7]} 22. Bxe4 {[%clk 0:02:00.4]}
22... dxe4 {[%clk 0:01:55.2]} 23. Rxd1 {[%clk 0:01:57.8]} 23... Qxf4 {[%clk
0:01:54.8]} 0-1

[Event "Early-Titled-Tuesday-Blitz-March-19-2024"]
[Site "Chess.com"]
[Date "2024.03.19"]
[Round "9"]
[White "CatLoverPL"]
[Black "enriquebutti"]
[Result "0-1"]
[WhiteElo "2484"]
[BlackElo "2215"]
[TimeControl "180+1"]
[EndTime "9:41:34 PDT"]
[Termination "enriquebutti won by resignation"]

1. g3 {[%clk 0:03:00.9]} 1... e5 {[%clk 0:02:58.8]} 2. Bg2 {[%clk 0:03:01.6]}
2... Nc6 {[%clk 0:02:58.6]} 3. c4 {[%clk 0:03:02.5]} 3... g6 {[%clk 0:02:57.8]}
4. Nc3 {[%clk 0:03:02.4]} 4... Bg7 {[%clk 0:02:57.5]} 5. Nf3 {[%clk 0:03:02.8]}
5... d6 {[%clk 0:02:56.8]} 6. O-O {[%clk 0:03:02.9]} 6... Nf6 {[%clk 0:02:56.5]}
7. d3 {[%clk 0:03:02.9]} 7... O-O {[%clk 0:02:56]} 8. Rb1 {[%clk 0:03:03.5]}
8... a5 {[%clk 0:02:55.6]} 9. a3 {[%clk 0:03:04.1]} 9... h6 {[%clk 0:02:55.2]}
10. b4 {[%clk 0:03:04]} 10... axb4 {[%clk 0:02:55.1]} 11. axb4 {[%clk
0:03:04.9]} 11... Be6 {[%clk 0:02:54.5]} 12. b5 {[%clk 0:03:04.7]} 12... Ne7
{[%clk 0:02:54.3]} 13. c5 {[%clk 0:03:04.6]} 13... b6 {[%clk 0:02:41.4]} 14.
cxd6 {[%clk 0:03:01.8]} 14... cxd6 {[%clk 0:02:40.5]} 15. d4 {[%clk 0:02:59.6]}
15... e4 {[%clk 0:02:36.9]} 16. Nd2 {[%clk 0:02:59.4]} 16... d5 {[%clk
0:02:34.9]} 17. f3 {[%clk 0:02:59.5]} 17... Rc8 {[%clk 0:02:23.7]} 18. Qb3
{[%clk 0:02:55.3]} 18... e3 {[%clk 0:02:23]} 19. Re1 {[%clk 0:02:47.7]} 19...
exd2 {[%clk 0:02:21.4]} 20. Bxd2 {[%clk 0:02:48.6]} 20... Nf5 {[%clk 0:02:21]}
21. e3 {[%clk 0:02:47.7]} 21... Nd6 {[%clk 0:02:20.3]} 22. e4 {[%clk 0:02:43]}
22... dxe4 {[%clk 0:02:03.1]} 23. d5 {[%clk 0:02:42.4]} 23... Rxc3 {[%clk
0:01:56.1]} 24. Bxc3 {[%clk 0:02:41]} 24... Bxd5 {[%clk 0:01:55.5]} 25. Qd1
{[%clk 0:02:35.3]} 25... exf3 {[%clk 0:01:50.6]} 26. Bxf3 {[%clk 0:02:33.8]}
26... Nde4 {[%clk 0:01:44.9]} 27. Bd4 {[%clk 0:02:25.8]} 27... Re8 {[%clk
0:01:40]} 28. Kg2 {[%clk 0:02:25.3]} 28... Ng5 {[%clk 0:01:30.6]} 29. Rxe8+
{[%clk 0:02:20.3]} 29... Nxe8 {[%clk 0:01:26.3]} 30. Bxd5 {[%clk 0:02:13.6]}
30... Qxd5+ {[%clk 0:01:25.2]} 0-1

[Event "Early-Titled-Tuesday-Blitz-March-19-2024"]
[Site "Chess.com"]
[Date "2024.03.19"]
[Round "9"]
[White "Robert_Chessmood"]
[Black "Eagle_2019"]
[Result "1-0"]
[WhiteElo "2977"]
[BlackElo "2855"]
[TimeControl "180+1"]
[EndTime "9:41:53 PDT"]
[Termination "Robert_Chessmood won by resignation"]

1. e4 {[%clk 0:03:00.9]} 1... c5 {[%clk 0:02:57.2]} 2. Nf3 {[%clk 0:03:00.7]}
2... Nc6 {[%clk 0:02:53.6]} 3. c3 {[%clk 0:03:00.3]} 3... Nf6 {[%clk 0:02:51.1]}
4. e5 {[%clk 0:03:00.7]} 4... Nd5 {[%clk 0:02:50.9]} 5. Bc4 {[%clk 0:03:01]}
5... e6 {[%clk 0:02:49.8]} 6. d4 {[%clk 0:02:58.9]} 6... cxd4 {[%clk 0:02:49.5]}
7. cxd4 {[%clk 0:02:59.8]} 7... d6 {[%clk 0:02:49.7]} 8. O-O {[%clk 0:02:55.1]}
8... Be7 {[%clk 0:02:49.1]} 9. Qe2 {[%clk 0:02:52.2]} 9... O-O {[%clk
0:02:48.4]} 10. Nc3 {[%clk 0:02:44.6]} 10... Nxc3 {[%clk 0:02:38]} 11. bxc3
{[%clk 0:02:45.5]} 11... dxe5 {[%clk 0:02:23.9]} 12. dxe5 {[%clk 0:02:45.3]}
12... Qc7 {[%clk 0:02:23.4]} 13. Bd3 {[%clk 0:02:38.9]} 13... Rd8 {[%clk
0:02:21.3]} 14. Bc2 {[%clk 0:02:24]} 14... Bd7 {[%clk 0:02:13.9]} 15. Re1 {[%clk
0:02:09.7]} 15... Na5 {[%clk 0:02:09.8]} 16. Ng5 {[%clk 0:02:00.7]} 16... h6
{[%clk 0:01:38]} 17. Qe4 {[%clk 0:01:19]} 17... Bxg5 {[%clk 0:01:32.8]} 18. Qh7+
{[%clk 0:01:18.9]} 18... Kf8 {[%clk 0:01:31.3]} 19. Ba3+ {[%clk 0:01:15.8]} 1-0